Cogmind - Beta 13 --- EXPLORER MODE // 2024.04.01 @ 19:02:28 Player: uwuna Result: Core destroyed Performance ------------- Evolutions (4) 2000 Regions Visited (9) 1800 Robots Destroyed (108) 540 Value Destroyed (3985) 3985 Prototype IDs (13) 260 Alien Tech Used (0) 0 Bonus (1107) 1107 TOTAL SCORE: 9692 Bonus ------- High Alert Combat Kills 44 Follower Combat Kills 699 Entered DSFs 500 Friendly Fire -136 Cogmind --------- Core Integrity 0/850 Matter 202/300 Energy 302/310 System Corruption 1% Temperature Critical (2279) Movement Core (1550) Ox30 Location -6/DSF Parts ------- > --- POWER (1) -------- Fission Core > --- PROPULSION (6) --- Armored Huge Wheel Armored Huge Wheel Armored Huge Wheel > --- UTILITY (5) ------ Large Storage Unit Medium Armor Plating Hardened Medium Armor Plating Hardened Medium Armor Plating Improved Medium Armor Plating > --- WEAPON (4) ------- Advanced Assault Cannon Magnetic Acceleration Cannon Enhanced Gauss Cannon Enhanced Gauss Cannon > --- INVENTORY (15) --- Cooled Ion Engine Advanced Heat Sink Kinecellerator Medium Armor Plating Medium Armor Plating Hardened Medium Armor Plating Hacking Suite Advanced Component Analysis Suite Assault Cannon Mini Assault Cannon Enhanced Gauss Cannon Enhanced Gauss Cannon Heavy Rocket Launcher Peak State ------------ > --- POWER ------------ Fission Core > --- PROPULSION ------- Armored Huge Wheel Armored Huge Wheel Armored Huge Wheel > --- UTILITY ---------- Large Storage Unit Medium Armor Plating Hardened Medium Armor Plating Improved Medium Armor Plating Advanced Component Analysis Suite > --- WEAPON ----------- Gauss Rifle Advanced Assault Cannon Slug Cannon Mini Assault Cannon > --- INVENTORY -------- Cooled Ion Engine Light Armored Exoskeleton Improved VSS Leg Advanced Heat Sink Advanced Energy Well Kinecellerator Medium Armor Plating Medium Armor Plating Hardened Medium Armor Plating Hardened Medium Armor Plating Improved Shield Generator High-powered Shotgun Slug Cannon Heavy Rocket Launcher [Rating: 69] Favorites ----------- Power Cooled Ion Engine Engine Cooled Ion Engine Power Core Fission Core Propulsion Carbon-fiber Leg Leg Carbon-fiber Leg Wheel Armored Huge Wheel Utility Light Armor Plating Device Drone Bay Storage Large Storage Unit Hackware Hacking Suite Protection Light Armor Plating Weapon Gauss Rifle Ballistic Gun Gauss Rifle Ballistic Cannon Advanced Assault Cannon Launcher Rocket Launcher Build | -11 -10 -9 -8 -8 -7 -6 -6 -6 -6 ------- Run | Yrd Mat Mat Mat Sto Fac Fac Was Fac DSF Slots Evolved 9 | . 1 2 2 . 2 2 . . . Power . | . . . . . . . . . . Propulsion 4 | . 1 . 1 . . 2 . . . Utility 3 | . . 1 1 . 1 . . . . Weapon 2 | . . 1 . . 1 . . . . Parts Attached 74 | 8 3 2 16 4 24 6 5 2 4 Power 6 | 1 . . 2 1 1 1 . . . Engine 4 | 1 . . 1 1 1 . . . . Core 2 | . . . 1 . . 1 . . . Reactor . | . . . . . . . . . . Propulsion 16 | 2 1 . 7 . 5 1 . . . Treads . | . . . . . . . . . . Leg 13 | 2 1 . 7 . 3 . . . . Wheel 3 | . . . . . 2 1 . . . Hover . | . . . . . . . . . . Flight . | . . . . . . . . . . Utility 26 | 2 2 1 3 3 9 2 3 1 . Device 6 | 1 . . . 2 1 . 2 . . Storage 2 | . 2 . . . . . . . . Processor . | . . . . . . . . . . Hackware 1 | . . . . . 1 . . . . Protection 17 | 1 . 1 3 1 7 2 1 1 . Artifact . | . . . . . . . . . . Weapon 26 | 3 . 1 4 . 9 2 2 1 4 Energy Gun . | . . . . . . . . . . Energy Cannon . | . . . . . . . . . . Ballistic Gun 16 | 3 . 1 4 . 6 2 . . . Ballistic Cannon 9 | . . . . . 2 . 2 1 4 Launcher 1 | . . . . . 1 . . . . Special Weapon . | . . . . . . . . . . Impact Weapon . | . . . . . . . . . . Slashing Weapon . | . . . . . . . . . . Piercing Weapon . | . . . . . . . . . . Special Melee Weapon . | . . . . . . . . . . Unidentified Prototypes . | . . . . . . . . . . Parts Lost 9 | . . . 1 1 7 . . . . Power . | . . . . . . . . . . Propulsion 3 | . . . . . 3 . . . . Utility 5 | . . . 1 1 3 . . . . Weapon 1 | . . . . . 1 . . . . Highest Loss Streak 2 | . . . 1 1 2 . . . . To Critical Strikes . | . . . . . . . . . . Average Slot Usage (%) 92 | . 100 83 99 100 98 81 81 81 80 Engine 5 | . 12 10 2 6 6 . . . . Core 2 | . . . 5 1 . 5 6 6 6 Leg 23 | . 37 30 33 33 27 . . . . Wheel 4 | . . . . . . 18 18 18 18 Device 2 | . 4 . . 9 2 . 3 . . Storage 7 | . 8 10 8 8 7 6 6 6 6 Hackware 1 | . . . . . 4 . . . . Protection 19 | . 12 13 24 14 20 24 21 25 25 Ballistic Gun 20 | . 25 20 25 25 25 12 7 1 . Ballistic Cannon 4 | . . . . . 1 11 16 22 24 Naked Turns . | . . . . . . . . . . Heaviest Build 92 | 11 30 33 51 55 63 76 81 84 92 Greatest Support 84 | 20 30 30 65 60 70 84 84 84 84 Greatest Overweight (x) 30 | . . 1 . . 1 . . . 30 Average Overweight (x) . | . . . . . . . . . 1 Largest Inventory Capacity 15 | 5 15 15 15 15 15 15 15 15 15 Average Capacity 14 | 5 11 15 15 15 15 15 15 15 15 Most Carried 15 | 5 13 15 15 15 15 15 15 15 15 Average Carried 13 | 1 8 14 13 14 14 12 14 14 13 Final Capacity 15 | 5 15 15 15 15 15 15 15 15 15 Final Carried 15 | 5 10 15 15 15 12 15 14 15 13 Class Distribution -------------------- 41% | Hacker-Tank 36% | Scavenger-Tank 20% | Hacker-Mutant Dominant Class ---------------- Hacker-Mutant | -10/Materials Hacker-Mutant | -9/Materials Scavenger-Tank | -8/Materials Scavenger-Tank | -8/Storage Hacker-Tank | -7/Factory Hacker-Tank | -6/Factory Hacker-Tank | -6/Waste Hacker-Tank | -6/Factory Hacker-Tank | -6/DSF Resources | -11 -10 -9 -8 -8 -7 -6 -6 -6 -6 ----------- Run | Yrd Mat Mat Mat Sto Fac Fac Was Fac DSF Matter Collected 3731 | 298 87 463 697 508 996 496 60 60 66 Remotely . | . . . . . . . . . . Salvage Created 4643 | 30 57 568 1139 937 1404 458 . . 50 Parts 266 | 2 8 33 66 49 85 22 . . 1 Haulers Intercepted 1 | . . . 1 . . . . . . Recyclers Shooed 2 | . . 2 . . . . . . . Parts Field Recycled . | . . . . . . . . . . Retrieved Matter . | . . . . . . . . . . Parts Self-Destructed . | . . . . . . . . . . Prevented . | . . . . . . . . . . Kills | -11 -10 -9 -8 -8 -7 -6 -6 -6 -6 ------- Run | Yrd Mat Mat Mat Sto Fac Fac Was Fac DSF Combat Hostiles Destroyed 87 | 1 2 11 21 14 26 11 . . 1 Guns 79 | 1 2 11 21 14 23 7 . . . Cannons 7 | . . . . . 2 4 . . 1 AOE 1 | . . . . . 1 . . . . Classes Destroyed 15 | 1 2 4 4 . 4 . . . . Worker 1 | . . 1 . . . . . . . Builder 2 | . . . . . 2 . . . . Hauler 1 | . . . 1 . . . . . . Recycler 5 | . . . 1 3 1 . . . . Operator 2 | . . 1 . 1 . . . . . Watcher 9 | . 1 1 3 . 2 2 . . . Swarmer 17 | . 2 . 5 2 3 5 . . . Grunt 36 | 1 . 6 9 5 11 4 . . . Brawler 1 | . . . 1 . . . . . . Duelist 2 | . . 1 . . . . . . 1 Sentry 21 | . . 4 4 7 5 1 . . . Specialist 1 | . . . . . 1 . . . . Hunter 5 | . . . 2 . 3 . . . . Programmer 4 | . . . . . 3 1 . . . Heavy 1 | . . . . . 1 . . . . Best Kill Streak 7 | 1 2 4 5 4 7 4 . . 1 Combat Bots Only 6 | 1 2 3 4 3 6 4 . . 1 Max Kills in Single Turn 2 | 1 1 1 2 2 2 2 . . 1 Gunslinging 1 | . . . 1 . . 1 . . . Exploded 1 | . . . . . 1 . . . . Melee . | . . . . . . . . . . Uniques/NPCs Destroyed . | . . . . . . . . . . Combat | -11 -10 -9 -8 -8 -7 -6 -6 -6 -6 -------- Run | Yrd Mat Mat Mat Sto Fac Fac Was Fac DSF Hostile Shots Fired 468 | 4 4 46 108 47 199 60 . . . Missed 137 | 3 1 11 32 17 51 22 . . . Damage Taken 3416 | 7 14 298 679 243 908 329 . 30 908 Core 1079 | . . 9 47 . 99 16 . . 908 Absorbed by Shields . | . . . . . . . . . . Ignored by Resistances 1832 | 4 10 183 419 202 790 205 . 19 . Regen/Repaired (Parts) 117 | . . . . . 84 . 33 . . Core Remaining (%) 94 | 100 100 97 . 91 85 . . . . Volleys Fired 249 | 3 3 51 63 33 64 31 . . 1 Largest 4 | 2 2 2 3 3 4 4 . . 4 Hottest 215 | 40 40 40 79 79 152 147 . . 215 Shots Fired 732 | 6 6 102 187 99 242 86 . . 4 Gun 669 | 6 6 102 187 99 213 56 . . . Cannon 62 | . . . . . 28 30 . . 4 Launcher 1 | . . . . . 1 . . . . Special . | . . . . . . . . . . Kinetic 731 | 6 6 102 187 99 241 86 . . 4 Thermal . | . . . . . . . . . . Explosive 1 | . . . . . 1 . . . . Electromagnetic . | . . . . . . . . . . Robot Hit Streak 40 | 6 10 22 25 31 40 15 . . 4 Robot Miss Streak 4 | . . 4 2 3 2 3 . . . Penetration Max 1 | . . . 1 1 1 1 . . . Secondary Targets 11 | . . 3 5 1 1 1 . . . Max Gunslinging Chain 1 | . . 1 1 1 1 1 . . . Shots Hit Robots 562 | 6 4 82 153 78 179 58 . . 2 Core Hits 220 | 2 4 33 55 31 70 24 . . 1 Critical Kills 4 | . . 1 . . 3 . . . . Critical Parts Destroyed 8 | . . 2 . 1 3 2 . . . Critical Strikes 16 | . . 3 1 1 6 5 . . . Destroy 13 | . . 3 1 1 6 2 . . . Blast 3 | . . . . . . 3 . . . Melee Attacks . | . . . . . . . . . . Impact . | . . . . . . . . . . Slashing . | . . . . . . . . . . Piercing . | . . . . . . . . . . Sneak Attacks . | . . . . . . . . . . Combat Hostiles . | . . . . . . . . . . Follow-up Attacks . | . . . . . . . . . . Damage Inflicted 9457 | 71 50 1037 2177 1467 3416 1188 . . 51 Guns 8195 | 71 50 1030 2177 1467 2751 649 . . . Cannons 1139 | . . . . . 549 539 . . 51 Explosions 116 | . . . . . 116 . . . . Melee . | . . . . . . . . . . Ramming 7 | . . 7 . . . . . . . Kinetic 9334 | 71 50 1030 2177 1467 3300 1188 . . 51 Thermal 76 | . . . . . 76 . . . . Explosive 40 | . . . . . 40 . . . . Electromagnetic . | . . . . . . . . . . Impact . | . . . . . . . . . . Slashing . | . . . . . . . . . . Piercing . | . . . . . . . . . . Highest Corruption 2 | . . . . . 2 . . 1 1 Average Corruption 1 | . . . . . 1 . . 1 1 Corruption Purged . | . . . . . . . . . . Corruption Blocked 8 | . . . . . . . . . 8 Effects 8 | . . . . . 6 . . . 2 Message Errors 2 | . . . . . 2 . . . . Matter Fused 1 | . . . . . . . . . 1 Heat Flow Errors 1 | . . . . . 1 . . . . Energy Discharges 2 | . . . . . 1 . . . 1 Data Loss (minor) 1 | . . . . . 1 . . . . Misfires 1 | . . . . . 1 . . . . Overload Shots . | . . . . . . . . . . Overflow Damage 40 | . . . . . 26 14 . . . Projectiles 14 | . . . . . . 14 . . . Explosions 26 | . . . . . 26 . . . . Melee . | . . . . . . . . . . Knockbacks 7 | . . . . . 1 6 . . . Impact . | . . . . . . . . . . Kinetic 6 | . . . . . 1 5 . . . Secondary 1 | . . . . . . 1 . . . Self-Inflicted Damage 20 | . . . . . 20 . . . . Shots 1 | . . . . . 1 . . . . Rammed . | . . . . . . . . . . Targets Rammed 2 | . . 2 . . . . . . . Kicked 2 | . . 2 . . . . . . . Crushed . | . . . . . . . . . . Highest Temperature 2279 | . . 32 328 159 396 318 . . 2279 Average Temperature 158 | . . 10 118 44 130 98 . . 681 Received Heat Transfer 1419 | 6 . 291 504 207 252 159 . . . Effects 46 | . . . 3 . 7 4 . . 32 Shutdowns 4 | . . . . . . . . . 4 Energy Bleed 5 | . . . 1 . 1 1 . . 2 Interference 12 | . . . 2 . 3 3 . . 4 Matter Decay 3 | . . . . . 1 . . . 2 Short Circuit 4 | . . . . . 1 . . . 3 Damage (minor) 5 | . . . . . 1 . . . 4 Damage (major) 6 | . . . . . . . . . 6 Damage (core) 7 | . . . . . . . . . 7 Siege Activations . | . . . . . . . . . . Robots Corrupted . | . . . . . . . . . . Combat Hostiles . | . . . . . . . . . . Parts Fried . | . . . . . . . . . . Impact Corruptions . | . . . . . . . . . . Robots Melted . | . . . . . . . . . . Combat Hostiles . | . . . . . . . . . . Parts Melted 1 | . . . . . 1 . . . . Heat Transferred 50 | . . . . . 50 . . . . Parts Sabotaged . | . . . . . . . . . . Parts Stolen . | . . . . . . . . . . Parts Stripped . | . . . . . . . . . . Power Chain Reactions . | . . . . . . . . . . Alert | -11 -10 -9 -8 -8 -7 -6 -6 -6 -6 ------- Run | Yrd Mat Mat Mat Sto Fac Fac Was Fac DSF Peak Influence 500 | 20 84 276 417 500 250 300 16 26 239 Initial 165 | . 9 25 13 47 165 18 16 8 13 Average 101 | 6 67 100 149 163 92 77 16 16 178 Maximum Alert Level 2 | . . 1 2 2 1 1 . . 1 Low Security (%) 83 | 100 100 84 77 75 82 90 100 100 46 Level 1 15 | . . 15 20 18 17 9 . . 53 Level 2 . | . . . 1 5 . . . . . Level 3 . | . . . . . . . . . . Level 4 . | . . . . . . . . . . Level 5 . | . . . . . . . . . . High Security . | . . . . . . . . . . Max Security . | . . . . . . . . . . Sterilizations 1 | . . . . . . . . . 1 Squads Dispatched 28 | . . . 6 5 14 3 . . . Investigation 4 | . . . . . 4 . . . . Extermination 4 | . . . . . 2 2 . . . Reinforcement 7 | . . . 2 2 2 1 . . . Assault . | . . . . . . . . . . Garrison 13 | . . . 4 3 6 . . . . Intercept . | . . . . . . . . . . Searches Triggered . | . . . . . . . . . . Construction Impeded . | . . . . . . . . . . Haulers Reinforced . | . . . . . . . . . . Active Scanning Responses . | . . . . . . . . . . Cargo Convoy Interrupts 1 | . . . . . 1 . . . . Stealth | -11 -10 -9 -8 -8 -7 -6 -6 -6 -6 --------- Run | Yrd Mat Mat Mat Sto Fac Fac Was Fac DSF Distress Signals 9 | . . 2 3 3 . 1 . . . Communications Jammed . | . . . . . . . . . . Distress Signals . | . . . . . . . . . . Times Spotted 133 | 1 3 21 29 24 35 16 . . 4 Peak Tracking Total 7 | 1 2 6 6 3 7 3 . . 3 Tactical Retreats 3 | . . 1 1 . . 1 . . . Traps | -11 -10 -9 -8 -8 -7 -6 -6 -6 -6 ------- Run | Yrd Mat Mat Mat Sto Fac Fac Was Fac DSF Traps Triggered 4 | . . . . . 2 1 . 1 . Indirectly . | . . . . . . . . . . Trap Hack Attempts . | . . . . . . . . . . Triggered . | . . . . . . . . . . Disarmed 5 | . . . . 5 . . . . . Reprogrammed . | . . . . . . . . . . Reused . | . . . . . . . . . . Traps Extracted . | . . . . . . . . . . Installed . | . . . . . . . . . . Triggered . | . . . . . . . . . . Machines | -11 -10 -9 -8 -8 -7 -6 -6 -6 -6 ---------- Run | Yrd Mat Mat Mat Sto Fac Fac Was Fac DSF Machines Disabled 5 | . . . 1 2 2 . . . . Max in Single Turn 2 | . . . 1 1 2 . . . . Garrison Access 3 | . . . . 1 . 1 . 1 . Machines Repaired . | . . . . . . . . . . Machines Dismantled . | . . . . . . . . . . Machines Sabotaged . | . . . . . . . . . . Overloaded Fab Kills . | . . . . . . . . . . Hacking | -11 -10 -9 -8 -8 -7 -6 -6 -6 -6 --------- Run | Yrd Mat Mat Mat Sto Fac Fac Was Fac DSF Machines Accessed 38 | . 5 6 4 9 8 4 . 2 . Terminals 23 | . 4 4 3 7 3 1 . 1 . Fabricators . | . . . . . . . . . . Repair Stations 2 | . . . . . 2 . . . . Recycling Units 8 | . 1 2 1 1 2 1 . . . Scanalyzers 2 | . . . . . 1 1 . . . Garrison Access 3 | . . . . 1 . 1 . 1 . Total Hacks 70 | . 6 11 9 14 20 8 . 2 . Successful 49 | . 5 10 9 11 9 3 . 2 . Failed 21 | . 1 1 . 3 11 5 . . . Catastrophic 2 | . . . . 1 . 1 . . . Database Lockouts . | . . . . . . . . . . Manual 7 | . . . . 3 4 . . . . Terminals 41 | . 4 8 6 11 9 2 . 1 . Fabricators . | . . . . . . . . . . Repair Stations 6 | . . . . . 6 . . . . Recycling Units 14 | . 2 3 3 1 3 2 . . . Scanalyzers 4 | . . . . . 2 2 . . . Garrison Access 5 | . . . . 2 . 2 . 1 . Terminal Hacks 28 | . 3 7 6 9 2 . . 1 . Record 6 | . . . 4 1 1 . . . . Robot Analysis 1 | . . 1 . . . . . . . Prototype ID Bank 5 | . 1 1 2 1 . . . . . Open Door 3 | . . . . 3 . . . . . Open DSF 1 | . . . . . . . . 1 . Emergency Access Points 4 | . 2 2 . . . . . . . Unreport Threat 2 | . . . . 1 1 . . . . Locate Traps 1 | . . 1 . . . . . . . Disarm Traps 1 | . . . . 1 . . . . . Transport Status 1 | . . 1 . . . . . . . Investigation Status 1 | . . . . 1 . . . . . Recall Reinforcements 1 | . . . . 1 . . . . . Hauler Manifests 1 | . . 1 . . . . . . . Fabricator Hacks . | . . . . . . . . . . Repair Station Hacks 4 | . . . . . 4 . . . . Scan Component 2 | . . . . . 2 . . . . Repair 2 | . . . . . 2 . . . . Recycling Unit Hacks 12 | . 2 3 3 1 1 2 . . . Report Inventory 8 | . 1 2 2 1 1 1 . . . Retrieve Matter 1 | . . . . . . 1 . . . Retrieve Components 3 | . 1 1 1 . . . . . . Scanalyzer 2 | . . . . . 2 . . . . Insert Component 1 | . . . . . 1 . . . . Analyze 1 | . . . . . 1 . . . . Garrison Access Hacks 3 | . . . . 1 . 1 . 1 . Seal Access 3 | . . . . 1 . 1 . 1 . Unauthorized Hacks . | . . . . . . . . . . Terminals . | . . . . . . . . . . Fabricators . | . . . . . . . . . . Repair Stations . | . . . . . . . . . . Recycling Units . | . . . . . . . . . . Scanalyzers . | . . . . . . . . . . Garrison Access . | . . . . . . . . . . Data Cores Recovered 1 | . . 1 . . . . . . . Used . | . . . . . . . . . . Hacking Detections 18 | . 2 2 2 5 5 2 . . . Full Trace Events 3 | . . . . . 3 . . . . Feedback Events 1 | . . . . . 1 . . . . Corruption 1 | . . . . . 1 . . . . Feedback Blocked . | . . . . . . . . . . Robot Schematics Acquired . | . . . . . . . . . . Robots Built . | . . . . . . . . . . Authchips . | . . . . . . . . . . Time . | . . . . . . . . . . Total Robot Build Rating . | . . . . . . . . . . Part Schematics Acquired 1 | . . . . . 1 . . . . Parts Built . | . . . . . . . . . . Authchips . | . . . . . . . . . . Time . | . . . . . . . . . . Total Part Build Rating . | . . . . . . . . . . Parts Repaired 2 | . . . . . 2 . . . . Time 60 | . . . . . 60 . . . . Parts Recycled . | . . . . . . . . . . Recycled Matter . | . . . . . . . . . . Retrieved Matter 234 | . . . . . . 234 . . . Retrieved Components 13 | . 3 9 1 . . . . . . Parts Scanalyzed 1 | . . . . . 1 . . . . Part Schematics Acquired 1 | . . . . . 1 . . . . Parts Damaged 1 | . . . . . 1 . . . . Bothacking | -11 -10 -9 -8 -8 -7 -6 -6 -6 -6 ------------ Run | Yrd Mat Mat Mat Sto Fac Fac Was Fac DSF Used RIF Installer . | . . . . . . . . . . Robots Hacked . | . . . . . . . . . . Non-combat . | . . . . . . . . . . Combat . | . . . . . . . . . . Robot Hacks Applied . | . . . . . . . . . . Relay Couplers Released . | . . . . . . . . . . Fabnet Peak Effective % . | . . . . . . . . . . Robots Rewired . | . . . . . . . . . . Allies Hacked . | . . . . . . . . . . Hacks Repelled . | . . . . . . . . . . Allies | -11 -10 -9 -8 -8 -7 -6 -6 -6 -6 -------- Run | Yrd Mat Mat Mat Sto Fac Fac Was Fac DSF Total Allies 30 | . . . . 9 . . 21 . . Largest Group 21 | . . . . 9 3 . 21 16 13 Highest-Rated Group 814 | . . . . 157 58 . 814 620 543 Highest-Rated Ally 50 | . . . . 29 29 . 50 50 50 Total Orders 2 | . . . . 2 . . . . . EXPLORE 2 | . . . . 2 . . . . . Ally Attacks 170 | . . . . 95 13 . 4 2 56 Total Damage 3613 | . . . . 1310 190 . 111 66 1936 Kills 24 | . . . . 15 . . . 1 8 Allies Corrupted . | . . . . . . . . . . Allies Melted . | . . . . . . . . . . Intel | -11 -10 -9 -8 -8 -7 -6 -6 -6 -6 ------- Run | Yrd Mat Mat Mat Sto Fac Fac Was Fac DSF Robot Analysis Total 1 | . . 1 . . . . . . . Derelict Logs Recovered . | . . . . . . . . . . Drone Launches 6 | . . . . 6 . . . . . Drone Recoveries 6 | . . . . 6 . . . . . Exploration | -11 -10 -9 -8 -8 -7 -6 -6 -6 -6 ------------- Run | Yrd Mat Mat Mat Sto Fac Fac Was Fac DSF Turns Passed 6867 | 114 358 969 917 773 2234 771 284 242 205 Spaces Moved 4622 | 81 273 539 523 498 1486 614 246 232 130 Core 20 | 17 . . . . . . . . 3 Treads . | . . . . . . . . . . Legs 3372 | 64 273 539 523 498 1475 . . . . Wheels 1230 | . . . . . 11 614 246 232 127 Hover . | . . . . . . . . . . Flight . | . . . . . . . . . . Fastest Speed 50 | 50 120 120 120 120 115 100 100 100 100 Average Speed 119 | 105 120 141 121 120 122 100 100 100 147 Slowest Speed 1550 | 120 120 190 122 120 196 100 100 100 1550 Overloaded Moves . | . . . . . . . . . . Propulsion Burnouts . | . . . . . . . . . . Robots Hopped . | . . . . . . . . . . Cave-ins Triggered . | . . . . . . . . . . Exploration Rate (%) 45 | 6 52 43 38 72 34 19 95 8 89 Regions Visited 9 Branch Regions 1 Pre-discovered Areas . | . . . . . . . . . . Known Exits Taken 7 | 1 1 1 1 1 1 . . 1 . Unknown Exits Taken . | . . . . . . . . . . Scrap Searched . | . . . . . . . . . . Spaces Dug . | . . . . . . . . . . Terrain Destroyed 36 | . . . . . 32 4 . . . Melee . | . . . . . . . . . . Projectile 10 | . . . . . 6 4 . . . AOE 26 | . . . . . 26 . . . . Terrain Rammed . | . . . . . . . . . . Walls Destroyed . | . . . . . . . . . . Machines Disabled . | . . . . . . . . . . Actions | -11 -10 -9 -8 -8 -7 -6 -6 -6 -6 --------- Run | Yrd Mat Mat Mat Sto Fac Fac Was Fac DSF Total 5495 | 103 300 647 674 611 1774 709 285 241 151 Wait 331 | . 2 33 37 56 139 43 16 5 . Move 4614 | 80 272 538 522 497 1485 614 245 231 130 Hop . | . . . . . . . . . . Pick Up 131 | 12 13 13 20 11 35 10 8 2 7 Fast Attach . | . . . . . . . . . . Attach 33 | 7 2 2 4 1 14 2 . . 1 Detach 1 | . . 1 . . . . . . . Swap 41 | 1 1 . 12 3 10 4 5 2 3 Drop 90 | . 7 7 16 10 27 5 9 1 8 Fire 249 | 3 3 51 63 33 64 31 . . 1 Melee . | . . . . . . . . . . Ram . | . . . . . . . . . . Kick 2 | . . 2 . . . . . . . Crush . | . . . . . . . . . . Escape Stasis . | . . . . . . . . . . Rewire 3 | . . . . . . . 2 . 1 Trap . | . . . . . . . . . . Miscellaneous . | . . . . . . . . . . Route ------- -11/Scrapyard -10/Materials (discovered 2 exits: *Mat / *Min) -9/Materials (discovered 3 exits: *Mat x2 / *Min) -8/Materials (discovered 2 exits: *Sto x2) -8/Storage -7/Factory -6/Factory -6/Waste -6/Factory (discovered 2 exits: *Fac / DSF) -6/DSF (discovered 1 exit: *Fac) History --------- Turn | Location | Event 2 | -11/Scrapyard | Met Revision 17 65 | -11/Scrapyard | Identified exit to Materials 65 | -11/Scrapyard | Discovered exit to Materials (range 8) 115 | -11/Scrapyard | Entered Materials 115 | -10/Materials | Evolved 1 slot: Propulsion x1 259 | -10/Materials | Identified exit to Mines 259 | -10/Materials | Discovered exit to Mines (range 14) 314 | -10/Materials | Build established: Hacker-Mutant 401 | -10/Materials | Identified exit to Materials 401 | -10/Materials | Discovered exit to Materials (range 15) 473 | -10/Materials | Entered another Materials area 473 | -9/Materials | Evolved 2 slots: Utility x1, Weapon x1 874 | -9/Materials | Identified exit to Materials 874 | -9/Materials | Discovered exit to Materials (range 9) 1260 | -9/Materials | Discovered exit to Materials (range 6) 1300 | -9/Materials | Identified exit to Mines 1300 | -9/Materials | Discovered exit to Mines (range 15) 1442 | -9/Materials | Entered another Materials area 1442 | -8/Materials | Evolved 2 slots: Propulsion x1, Utility x1 1653 | -8/Materials | Garrison activated, responded to threat 1881 | -8/Materials | Build established: Scavenger-Tank 1968 | -8/Materials | Identified exit to Storage 1968 | -8/Materials | Discovered exit to Storage (range 9) 2232 | -8/Materials | Discovered exit to Storage (range 9) 2284 | -8/Materials | Garrison activated, responded to threat 2359 | -8/Materials | Entered Storage 2670 | -8/Storage | Garrison activated, responded to threat 2783 | -8/Storage | Garrison activated, responded to threat 2893 | -8/Storage | Assisted by bots powering up and referring to "LRC-V3" 2954 | -8/Storage | Lost 3 allies 3002 | -8/Storage | Lost 3 allies 3114 | -8/Storage | Identified exit to Factory 3114 | -8/Storage | Discovered exit to Factory (range 12) 3132 | -8/Storage | Entered Factory 3132 | -7/Factory | Accompanied by 3 allies 3132 | -7/Factory | Evolved 2 slots: Utility x1, Weapon x1 3252 | -7/Factory | Lost 3 allies 3317 | -7/Factory | Garrison activated, responded to threat 3783 | -7/Factory | Repaired Gauss Rifle? 4405 | -7/Factory | Repaired Broken Enh. Autogun 4541 | -7/Factory | Cargo convoy interrupted 4574 | -7/Factory | Build established: Hacker-Tank 4578 | -7/Factory | Garrison activated, responded to threat 5288 | -7/Factory | Identified exit to Factory 5288 | -7/Factory | Discovered exit to Factory (range 5) 5366 | -7/Factory | Entered another Factory area 5366 | -6/Factory | Evolved 2 slots: Propulsion x2 5885 | -6/Factory | Spotted B-75 Beast 6027 | -6/Factory | Identified exit to Factory 6027 | -6/Factory | Discovered exit to Factory (range 14) 6137 | -6/Factory | Sucked down chute 6137 | -6/Factory | Entered Waste 6138 | -6/Waste | Met a frightened Derelict 6138 | -6/Waste | Joined by Warlord forces that had cleared the area 6325 | -6/Waste | Found Prototype Processor 6332 | -6/Waste | Identified Exp. Signal Interpreter 6393 | -6/Waste | Identified exit to Factory 6393 | -6/Waste | Discovered exit to Factory (range 10) 6420 | -6/Waste | A Compactor rumbled back to life 6421 | -6/Waste | Spotted C-40 Crusher 6421 | -6/Waste | Entered Factory 6421 | -6/Factory | Accompanied by 16 allies 6561 | -6/Factory | Discovered exit to Factory (range 9) 6657 | -6/Factory | Identified exit to DSF 6663 | -6/Factory | Entered DSF 6663 | -6/DSF | Encountered a pitched battle between 0b10 and Warlord forces 6663 | -6/DSF | Accompanied by 13 allies 6700 | -6/DSF | Spotted Striker 6703 | -6/DSF | Allies destroyed Striker 6731 | -6/DSF | Lost 12 allies 6732 | -6/DSF | Sterilization system engaged 6752 | -6/DSF | Ambient heat levels rising (+10) 6767 | -6/DSF | Ambient heat levels rising (+10) 6782 | -6/DSF | Ambient heat levels rising (+10) 6797 | -6/DSF | Ambient heat levels rising (+10) 6812 | -6/DSF | Ambient heat levels rising (+10) 6827 | -6/DSF | Ambient heat levels rising (+10) 6830 | -6/DSF | Discovered exit to Factory (range 15) 6842 | -6/DSF | Ambient heat levels rising (+10) 6851 | -6/DSF | Core integrity fell below 50% 6857 | -6/DSF | Ambient heat levels rising (+10) 6868 | -6/DSF | Core integrity fell below 20% 6869 | -6/DSF | Core destroyed Last Messages --------------- Flexi-carbon Leg, Flexi-carbon Leg. 06865_ GG-EEZ(g) heat damages Hvy. Beamcaster, Adv. Heat Sink. 06865_ A-15 Conveyor heat spikes uncontrollably. 06866_ Overheating: Enh. Gauss Cannon damaged (-14). 06866_ A3-R8B(g) heat damages Neutrino Core, Flexi-carbon Leg. 06866_ PY-AIQ(g) heat short circuits Flexi-carbon Leg. 06866_ WS-Q7E(g) heat damages Neutrino Core. 06866_ PV-QQS(s) heat spikes uncontrollably. 06867_ 3K-DHV(g) heat spikes uncontrollably. 06867_ PV-QQS(s) heat spikes uncontrollably. 06867_ GG-EEZ(g) heat damages core (-13). 06868_ Overheating: Core damaged (-119). 06868_ PF-FHI(g) heat damages Neutrino Core. 06868_ 3K-DHV(g) heat damages core (-19). 06868_ WS-Q7E(g) heat spikes uncontrollably. 06869_ Overheating: Core damaged (-127). Map ----- +----------------------------------------------------+ | | | | | | | | | | | | | | | | | | | | | | | | | | | | | | | | | ????????????????????????????????????????????????? | | ????????????????????????????????????????????????? | | ????????????????????????????????????????????????? | | ????????##??????????????????????????????????????? | | ????????""??????????????????????????????????????? | | ????????#"#????????########?????????????????????? | | ?????####"#####???## # #;##????????????????????? | | ?????#"""""##%##### ! gg#####???#????????????? | | ?????#"""" ##==# =! !!#!%!#!!;#"%??????????? | | ??#"##%" *[[%=%]%!!% g@=g=!% %<"????????? | | ??#""""%%%%=%=! !===* sg g=g]*= !%%"???????? | | ????##"" =##%*# ]%*## ## # ##!%%%"???????? | | ?????### ###[%# *[### ##? #?????| ????????? | | ?????### ###"###"# g #?###????? #????????? | | ?????#"=!]==######## # #???????![!#???????? | | ?????##=%===# ^ % "#????????%=!#???????? | | ??????##%*##### !# ## %####??????##!%###??????? | | ??????#= #?#!?## ! "#?????? %*!"???????? | | ??????#= #?#???##!!! ! ##????## %*!#???????? | | ??????#= #?????##!!* /!!#????? " = !????????? | | ?????### #"##########%=%#########"##^^###??????? | | ?????# ! ## #!! ##!^ =##"= =# [[## !!#??????? | | ?????#!! ## #!= [A^[%^##== " [[## !!##?????? | | ?????# % %%[ !%=%=]! =!%% #?????? | | ?????# *%=[!*!%[=% ! |%[! #??????? | | ????## [% *=%=!![%%% % !=%[= #??????? | | ????#" %##**= !!*%%[*=! #!! "[!=*= ##?????? | | ????## # * #! ! %=!/ ##!!!#!%!## "#?????? | | ?????###"## #=%# ### ]########### ####?????? | | ???????### # ! ] #??#####]] #???????? | | ?????????##### ] #??# +]] #???????? | | ?????????????#### " != #??????# [! #???????? | | ????????????????######%] ####?????### ##???????? | | ???????????????????#//*! "#?????# [ #???????? | +----------------------------------------------------+ Best States ------------- Heat Dissipation 37 Energy Generation 18 Energy Capacity 310 Matter Stores 300 Matter Capacity 300 Sight Range 16 Terrain Scan Density 10 Armor Coverage 900 Resistance: KI 60 Resistance: TH 45 Resistance: EX 35 Resistance: EM 35 Resistance: I 35 Resistance: S 35 Resistance: P 35 Evasion (%) 55 Offensive Hacking 30 Item Schematics ----------------- Enh. Autogun | -7/Factory | Scanalyzed Robot Schematics ------------------ None Fabricated ------------ Nothing Alien Tech Used ----------------- None Achievements -------------- Backstab Oops Please Form A Line The More The Merrier We Are Legion Challenges ------------ None Game ------ Seed MasterGravmagCasing Manual? 0 Play Time 01:44:57 Cumulative 5.2 hours Start 2024.04.01 @ 17:16:57 End 2024.04.01 @ 19:02:28 Sessions 1 Manual Loads 0 Difficulty Explorer Special Mode None Game No. 3 Rogue 0 Adventurer 0 Explorer 3 Win Type - Total 0 Types 0/0/0/0/0/0/0/0/0 Lore% 6 Gallery% 9 Achievement% 10 Wizard Run 0 Options --------- Layout 1 ASCII 0 Keyboard 0 Movement Mouse Keybinds 0 Fullscreen 1 Font 32/SmallcapsGlow Map View 50x35 Zoom Use 0% Tactical HUD 1 Map Filters NONE Filters NONE Steam 1 RUN: 2e841335-0df5-40bf-8c96-27132f628b06